[Event "*** Titled Tuesday Blitz"]
[Site "Chess.com"]
[Date "2020.04.14"]
[Round "1"]
[White "Poghosyan_Suren"]
[Black "ersekitamara"]
[Result "1-0"]
[WhiteElo "2521"]
[BlackElo "1941"]
[TimeControl "180+1"]
[EndTime "10:04:17 PDT"]
[Termination "Poghosyan_Suren won by resignation"]

1. d4 {[%clk 0:02:58.3]} 1... Nf6 {[%clk 0:02:59.7]} 2. Nf3 {[%clk 0:02:56.3]}
2... e6 {[%clk 0:02:59.6]} 3. Bg5 {[%clk 0:02:55.1]} 3... c5 {[%clk 0:02:49.6]}
4. e3 {[%clk 0:02:54.6]} 4... b6 {[%clk 0:02:48.7]} 5. c3 {[%clk 0:02:48.6]}
5... Bb7 {[%clk 0:02:48.7]} 6. Bd3 {[%clk 0:02:47.8]} 6... Be7 {[%clk
0:02:48.7]} 7. Nbd2 {[%clk 0:02:46]} 7... cxd4 {[%clk 0:02:48.3]} 8. exd4 {[%clk
0:02:45.4]} 8... d6 {[%clk 0:02:48.3]} 9. Qe2 {[%clk 0:02:40.3]} 9... Nbd7
{[%clk 0:02:47.7]} 10. a4 {[%clk 0:02:38.7]} 10... a6 {[%clk 0:02:44.3]} 11. O-O
{[%clk 0:02:37.8]} 11... O-O {[%clk 0:02:43.6]} 12. Rfe1 {[%clk 0:02:37.3]}
12... Re8 {[%clk 0:02:43.3]} 13. Nf1 {[%clk 0:02:34.9]} 13... Nd5 {[%clk
0:02:32.9]} 14. Bd2 {[%clk 0:02:30.1]} 14... Qc7 {[%clk 0:02:32.8]} 15. Ng3
{[%clk 0:02:29]} 15... N5f6 {[%clk 0:02:15.4]} 16. h4 {[%clk 0:02:15.5]} 16...
d5 {[%clk 0:01:52.2]} 17. h5 {[%clk 0:02:04.7]} 17... Bd6 {[%clk 0:01:52]} 18.
Ne5 {[%clk 0:01:48.8]} 18... Nxe5 {[%clk 0:01:16.5]} 19. dxe5 {[%clk 0:01:49.7]}
19... Bc5 {[%clk 0:01:16.5]} 20. b4 {[%clk 0:01:42.4]} 1-0

[Event "*** Titled Tuesday Blitz"]
[Site "Chess.com"]
[Date "2020.04.14"]
[Round "1"]
[White "mphofmann"]
[Black "AliKa2810"]
[Result "0-1"]
[WhiteElo "2269"]
[BlackElo "2619"]
[TimeControl "180+1"]
[EndTime "10:04:24 PDT"]
[Termination "AliKa2810 won by checkmate"]

1. b3 {[%clk 0:02:58.7]} 1... d5 {[%clk 0:02:58.8]} 2. Bb2 {[%clk 0:02:58.6]}
2... Bg4 {[%clk 0:02:57.6]} 3. f3 {[%clk 0:02:58]} 3... Bf5 {[%clk 0:02:51.3]}
4. e4 {[%clk 0:02:46.7]} 4... dxe4 {[%clk 0:02:48.5]} 5. Qe2 {[%clk 0:02:46.9]}
5... Nf6 {[%clk 0:02:37]} 6. Nc3 {[%clk 0:02:40.2]} 6... exf3 {[%clk 0:02:34]}
7. Qxf3 {[%clk 0:02:29.8]} 7... Qc8 {[%clk 0:02:25.8]} 8. h3 {[%clk 0:02:26.8]}
8... e6 {[%clk 0:02:23.1]} 9. g4 {[%clk 0:02:21.9]} 9... Bg6 {[%clk 0:02:18.1]}
10. O-O-O {[%clk 0:02:21]} 10... Be7 {[%clk 0:02:15.3]} 11. h4 {[%clk
0:02:17.8]} 11... h5 {[%clk 0:02:12]} 12. g5 {[%clk 0:02:17.7]} 12... Ng4 {[%clk
0:02:07.7]} 13. Nh3 {[%clk 0:02:04.3]} 13... Nd7 {[%clk 0:01:56.5]} 14. Nf4
{[%clk 0:02:01.3]} 14... Bf5 {[%clk 0:01:53.8]} 15. g6 {[%clk 0:01:37.7]} 15...
fxg6 {[%clk 0:01:52.2]} 16. Ne4 {[%clk 0:01:26.5]} 16... Nde5 {[%clk 0:01:42.4]}
17. Qe2 {[%clk 0:01:19]} 17... Qd7 {[%clk 0:01:41]} 18. Ng5 {[%clk 0:01:14.2]}
18... Qc6 {[%clk 0:01:23.7]} 19. Bg2 {[%clk 0:01:08.8]} 19... Qxc2# {[%clk
0:01:22.4]} 0-1

[Event "*** Titled Tuesday Blitz"]
[Site "Chess.com"]
[Date "2020.04.14"]
[Round "1"]
[White "Kumi29"]
[Black "Artur0208"]
[Result "0-1"]
[WhiteElo "2403"]
[BlackElo "2775"]
[TimeControl "180+1"]
[EndTime "10:04:26 PDT"]
[Termination "Artur0208 won by resignation"]

1. d4 {[%clk 0:03:00.3]} 1... d5 {[%clk 0:02:59.7]} 2. Nc3 {[%clk 0:02:59.9]}
2... e6 {[%clk 0:03:00.2]} 3. Bf4 {[%clk 0:03:00]} 3... Nf6 {[%clk 0:03:00.5]}
4. e3 {[%clk 0:02:59]} 4... Bb4 {[%clk 0:03:00.2]} 5. Qd3 {[%clk 0:02:45.9]}
5... O-O {[%clk 0:02:57.1]} 6. Nf3 {[%clk 0:02:43.8]} 6... c5 {[%clk 0:02:48.3]}
7. dxc5 {[%clk 0:02:42.9]} 7... Na6 {[%clk 0:02:47.4]} 8. a3 {[%clk 0:02:35.9]}
8... Nxc5 {[%clk 0:02:42]} 9. Qd4 {[%clk 0:02:28.4]} 9... Bxc3+ {[%clk
0:02:41.8]} 10. Qxc3 {[%clk 0:02:24.3]} 10... Nfe4 {[%clk 0:02:42]} 11. Qd4
{[%clk 0:02:24.8]} 11... f6 {[%clk 0:02:42.3]} 12. Bg3 {[%clk 0:02:03.5]} 12...
e5 {[%clk 0:02:41.4]} 13. Qd1 {[%clk 0:02:01.7]} 13... Be6 {[%clk 0:02:41.4]}
14. b4 {[%clk 0:01:59.3]} 14... Na4 {[%clk 0:02:41.1]} 15. Bd3 {[%clk
0:01:56.2]} 15... Nxg3 {[%clk 0:02:41]} 16. hxg3 {[%clk 0:01:52.5]} 16... g6
{[%clk 0:02:36.6]} 17. Qd2 {[%clk 0:01:09.7]} 17... Bg4 {[%clk 0:02:30.6]} 18.
Rh4 {[%clk 0:01:03.7]} 18... Qd7 {[%clk 0:02:27.4]} 19. Bb5 {[%clk 0:00:55.5]}
19... Qxb5 {[%clk 0:02:26.9]} 20. Rxg4 {[%clk 0:00:56]} 20... Rac8 {[%clk
0:02:27.3]} 21. Qd3 {[%clk 0:00:42.2]} 21... Qxd3 {[%clk 0:02:27.2]} 22. cxd3
{[%clk 0:00:42.3]} 22... Rc2 {[%clk 0:02:28.1]} 23. b5 {[%clk 0:00:40.3]} 23...
Nc3 {[%clk 0:02:25.6]} 24. d4 {[%clk 0:00:31.4]} 24... e4 {[%clk 0:02:25]} 25.
Nd2 {[%clk 0:00:31.2]} 25... g5 {[%clk 0:02:25]} 26. f4 {[%clk 0:00:29.5]} 26...
h5 {[%clk 0:02:24.7]} 0-1

[Event "*** Titled Tuesday Blitz"]
[Site "Chess.com"]
[Date "2020.04.14"]
[Round "1"]
[White "BakaPG"]
[Black "plumalka"]
[Result "1-0"]
[WhiteElo "2727"]
[BlackElo "2379"]
[TimeControl "180+1"]
[EndTime "10:04:27 PDT"]
[Termination "BakaPG won by resignation"]

1. e4 {[%clk 0:02:59.7]} 1... c5 {[%clk 0:02:59.6]} 2. Nf3 {[%clk 0:02:58.6]}
2... d6 {[%clk 0:02:59.7]} 3. d4 {[%clk 0:02:57.9]} 3... cxd4 {[%clk 0:03:00.6]}
4. Nxd4 {[%clk 0:02:58]} 4... Nf6 {[%clk 0:03:01]} 5. Nc3 {[%clk 0:02:58.1]}
5... Bd7 {[%clk 0:03:01.4]} 6. h3 {[%clk 0:02:45.3]} 6... e5 {[%clk 0:03:00.7]}
7. Nf5 {[%clk 0:02:40.3]} 7... Bc6 {[%clk 0:02:57.4]} 8. Bg5 {[%clk 0:02:36.4]}
8... h6 {[%clk 0:02:49.9]} 9. Bxf6 {[%clk 0:02:35.5]} 9... Qxf6 {[%clk
0:02:50.8]} 10. Nd5 {[%clk 0:02:30.3]} 10... Bxd5 {[%clk 0:02:45.7]} 11. Qxd5
{[%clk 0:02:29.4]} 11... g6 {[%clk 0:02:42.9]} 12. Bb5+ {[%clk 0:02:21.3]} 12...
Kd8 {[%clk 0:02:14.4]} 13. Qxb7 {[%clk 0:02:17.7]} 13... gxf5 {[%clk 0:02:09.8]}
14. Qxa8 {[%clk 0:02:17.4]} 14... Kc7 {[%clk 0:01:56.9]} 15. Qxa7+ {[%clk
0:02:15.4]} 15... Kc8 {[%clk 0:01:57.1]} 16. a4 {[%clk 0:01:59.1]} 16... fxe4
{[%clk 0:01:34.4]} 17. Ra3 {[%clk 0:01:55]} 17... d5 {[%clk 0:00:32.8]} 18. Rc3+
{[%clk 0:01:52.6]} 1-0

[Event "*** Titled Tuesday Blitz"]
[Site "Chess.com"]
[Date "2020.04.14"]
[Round "1"]
[White "florianschwabeneder"]
[Black "NM2019"]
[Result "1-0"]
[WhiteElo "2529"]
[BlackElo "2052"]
[TimeControl "180+1"]
[EndTime "10:04:27 PDT"]
[Termination "florianschwabeneder won by resignation"]

1. e4 {[%clk 0:03:00.9]} 1... e6 {[%clk 0:02:59.8]} 2. d3 {[%clk 0:03:00.8]}
2... c5 {[%clk 0:02:58.9]} 3. g3 {[%clk 0:02:58.9]} 3... Nc6 {[%clk 0:02:58.7]}
4. Bg2 {[%clk 0:02:58.9]} 4... g6 {[%clk 0:02:58.6]} 5. f4 {[%clk 0:02:50.4]}
5... Bg7 {[%clk 0:02:58.4]} 6. Nf3 {[%clk 0:02:50.8]} 6... Nge7 {[%clk
0:02:57.9]} 7. O-O {[%clk 0:02:50.8]} 7... O-O {[%clk 0:02:57]} 8. c3 {[%clk
0:02:50.5]} 8... f5 {[%clk 0:02:52.7]} 9. Be3 {[%clk 0:02:48]} 9... d6 {[%clk
0:02:51.9]} 10. Nbd2 {[%clk 0:02:43.6]} 10... Rb8 {[%clk 0:02:49.6]} 11. Kh1
{[%clk 0:02:13.6]} 11... b5 {[%clk 0:02:45.6]} 12. a3 {[%clk 0:02:12.9]} 12...
b4 {[%clk 0:02:40.5]} 13. axb4 {[%clk 0:02:12.2]} 13... cxb4 {[%clk 0:02:38.7]}
14. d4 {[%clk 0:02:08.6]} 14... bxc3 {[%clk 0:02:35.5]} 15. bxc3 {[%clk
0:02:08.4]} 15... fxe4 {[%clk 0:02:04.8]} 16. Nxe4 {[%clk 0:02:09.3]} 16... Nf5
{[%clk 0:02:04.1]} 17. Bg1 {[%clk 0:02:00.9]} 17... h5 {[%clk 0:01:49.3]} 18.
Re1 {[%clk 0:01:55]} 18... a5 {[%clk 0:01:42.9]} 19. Neg5 {[%clk 0:01:52.1]}
19... Re8 {[%clk 0:01:38.4]} 20. d5 {[%clk 0:01:42.4]} 20... exd5 {[%clk
0:01:32.8]} 21. Qxd5+ {[%clk 0:01:41.5]} 1-0

[Event "*** Titled Tuesday Blitz"]
[Site "Chess.com"]
[Date "2020.04.14"]
[Round "1"]
[White "Bykov_Egor"]
[Black "anushanlv"]
[Result "1-0"]
[WhiteElo "2543"]
[BlackElo "2105"]
[TimeControl "180+1"]
[EndTime "10:04:30 PDT"]
[Termination "Bykov_Egor won by resignation"]

1. d4 {[%clk 0:02:58.6]} 1... d5 {[%clk 0:02:59.3]} 2. c4 {[%clk 0:02:58.9]}
2... c6 {[%clk 0:02:59.9]} 3. Nf3 {[%clk 0:02:59.4]} 3... Nf6 {[%clk 0:03:00]}
4. Nc3 {[%clk 0:02:59.8]} 4... e6 {[%clk 0:02:59.8]} 5. e3 {[%clk 0:02:58.9]}
5... Nbd7 {[%clk 0:03:00.4]} 6. Qc2 {[%clk 0:02:59]} 6... b6 {[%clk 0:03:00.5]}
7. b3 {[%clk 0:02:58.5]} 7... Bb7 {[%clk 0:03:00.1]} 8. Bb2 {[%clk 0:02:58.7]}
8... Rc8 {[%clk 0:02:59.9]} 9. Bd3 {[%clk 0:02:56.8]} 9... Bd6 {[%clk
0:02:59.6]} 10. O-O {[%clk 0:02:56.7]} 10... O-O {[%clk 0:02:59.1]} 11. e4
{[%clk 0:02:57]} 11... dxe4 {[%clk 0:02:57.8]} 12. Nxe4 {[%clk 0:02:57.9]} 12...
Nxe4 {[%clk 0:02:57.2]} 13. Bxe4 {[%clk 0:02:58.8]} 13... Nf6 {[%clk 0:02:57.6]}
14. Bd3 {[%clk 0:02:58.9]} 14... h6 {[%clk 0:02:57.3]} 15. Rad1 {[%clk
0:02:49.9]} 15... c5 {[%clk 0:02:52]} 16. Qe2 {[%clk 0:02:38.3]} 16... cxd4
{[%clk 0:02:44.5]} 17. Nxd4 {[%clk 0:02:33.8]} 17... Qc7 {[%clk 0:02:43.5]} 18.
h3 {[%clk 0:02:21.6]} 18... a6 {[%clk 0:02:42.5]} 19. Bb1 {[%clk 0:02:15.2]}
19... Rfd8 {[%clk 0:02:40.1]} 20. Nxe6 {[%clk 0:02:03.6]} 20... Qc6 {[%clk
0:02:30]} 21. Rd5 {[%clk 0:01:36.6]} 21... Nxd5 {[%clk 0:02:06.1]} 22. Qg4
{[%clk 0:01:28.2]} 22... g6 {[%clk 0:01:53]} 23. Bxg6 {[%clk 0:01:14]} 23... Nf6
{[%clk 0:01:48.5]} 24. Bh7+ {[%clk 0:01:11.4]} 1-0

[Event "*** Titled Tuesday Blitz"]
[Site "Chess.com"]
[Date "2020.04.14"]
[Round "1"]
[White "ChessicallyInclined"]
[Black "julinha97"]
[Result "1-0"]
[WhiteElo "2561"]
[BlackElo "2164"]
[TimeControl "180+1"]
[EndTime "10:04:31 PDT"]
[Termination "ChessicallyInclined won by resignation"]

1. d4 {[%clk 0:03:00.9]} 1... Nf6 {[%clk 0:02:57.7]} 2. c4 {[%clk 0:03:00.7]}
2... g6 {[%clk 0:02:57.8]} 3. h4 {[%clk 0:03:00.2]} 3... d5 {[%clk 0:02:39.6]}
4. Nc3 {[%clk 0:02:54]} 4... dxc4 {[%clk 0:01:37.7]} 5. e4 {[%clk 0:02:52.2]}
5... c5 {[%clk 0:01:17.7]} 6. d5 {[%clk 0:02:48.6]} 6... b5 {[%clk 0:01:12.2]}
7. e5 {[%clk 0:02:44.9]} 7... b4 {[%clk 0:00:41.8]} 8. exf6 {[%clk 0:02:41]}
8... bxc3 {[%clk 0:00:40.6]} 9. Bxc4 {[%clk 0:02:34.3]} 9... exf6 {[%clk
0:00:25]} 10. bxc3 {[%clk 0:02:32.6]} 10... Bg7 {[%clk 0:00:23.1]} 11. h5 {[%clk
0:02:32.3]} 11... O-O {[%clk 0:00:21]} 12. hxg6 {[%clk 0:02:29.6]} 12... fxg6
{[%clk 0:00:20]} 13. d6+ {[%clk 0:02:29.1]} 13... Kh8 {[%clk 0:00:19.9]} 14. Qf3
{[%clk 0:02:07.9]} 14... Ba6 {[%clk 0:00:10.8]} 15. Rxh7+ {[%clk 0:02:06.6]} 1-0

[Event "*** Titled Tuesday Blitz"]
[Site "Chess.com"]
[Date "2020.04.14"]
[Round "1"]
[White "TST2014"]
[Black "Tall-guy"]
[Result "1-0"]
[WhiteElo "2530"]
[BlackElo "2054"]
[TimeControl "180+1"]
[EndTime "10:04:34 PDT"]
[Termination "TST2014 won by resignation"]

1. d4 {[%clk 0:02:56.1]} 1... d5 {[%clk 0:03:00]} 2. c4 {[%clk 0:02:55.5]} 2...
c6 {[%clk 0:03:00.2]} 3. Nf3 {[%clk 0:02:55.3]} 3... Nf6 {[%clk 0:03:00.5]} 4.
Nc3 {[%clk 0:02:55.1]} 4... dxc4 {[%clk 0:03:01]} 5. a4 {[%clk 0:02:54.9]} 5...
Bf5 {[%clk 0:03:01.5]} 6. e3 {[%clk 0:02:54.2]} 6... e6 {[%clk 0:03:02]} 7. Bxc4
{[%clk 0:02:54.2]} 7... Bb4 {[%clk 0:03:02.4]} 8. O-O {[%clk 0:02:53.8]} 8...
O-O {[%clk 0:03:01.8]} 9. Qe2 {[%clk 0:02:53.5]} 9... Bg4 {[%clk 0:03:01.9]} 10.
h3 {[%clk 0:02:52.5]} 10... Bh5 {[%clk 0:03:02]} 11. Rd1 {[%clk 0:02:51]} 11...
Nbd7 {[%clk 0:03:00.4]} 12. e4 {[%clk 0:02:50.8]} 12... Qa5 {[%clk 0:02:59.5]}
13. Bd2 {[%clk 0:02:42.3]} 13... e5 {[%clk 0:02:48.6]} 14. d5 {[%clk 0:02:34.6]}
14... cxd5 {[%clk 0:02:43.7]} 15. Nxd5 {[%clk 0:02:34.2]} 15... Nxd5 {[%clk
0:02:43]} 16. Bxd5 {[%clk 0:02:32.8]} 16... Bxf3 {[%clk 0:02:42.6]} 17. gxf3
{[%clk 0:02:24.7]} 17... Bxd2 {[%clk 0:02:41.9]} 18. Qxd2 {[%clk 0:02:22.4]}
18... Qb6 {[%clk 0:02:39.1]} 19. a5 {[%clk 0:02:16.6]} 19... Qg6+ {[%clk
0:02:35.8]} 20. Kh2 {[%clk 0:02:15.9]} 20... Nf6 {[%clk 0:02:35.6]} 21. Bxb7
{[%clk 0:02:10.2]} 21... Qh5 {[%clk 0:02:32.2]} 22. Bxa8 {[%clk 0:02:02.1]}
22... Qxf3 {[%clk 0:02:32.4]} 23. Bd5 {[%clk 0:01:53.3]} 23... Nh5 {[%clk
0:02:29.2]} 24. Ra3 {[%clk 0:01:51]} 24... Qf6 {[%clk 0:02:25.7]} 25. Rg1 {[%clk
0:01:45.5]} 25... Nf4 {[%clk 0:02:25.4]} 26. Rag3 {[%clk 0:01:38.2]} 26... g6
{[%clk 0:02:25.7]} 27. b4 {[%clk 0:01:33.2]} 27... h5 {[%clk 0:02:23.8]} 28. b5
{[%clk 0:01:30.9]} 28... h4 {[%clk 0:02:23.8]} 29. Rg4 {[%clk 0:01:27.5]} 29...
Rc8 {[%clk 0:02:21]} 30. Qxf4 {[%clk 0:01:21.1]} 30... exf4 {[%clk 0:02:05.5]}
31. Rxg6+ {[%clk 0:01:20.8]} 31... Qxg6 {[%clk 0:02:04.1]} 32. Rxg6+ {[%clk
0:01:19.7]} 32... Kf8 {[%clk 0:02:02.9]} 33. Rf6 {[%clk 0:01:18.4]} 1-0

[Event "*** Titled Tuesday Blitz"]
[Site "Chess.com"]
[Date "2020.04.14"]
[Round "1"]
[White "viktorskliarov"]
[Black "eightbyeightchess"]
[Result "1-0"]
[WhiteElo "2645"]
[BlackElo "2296"]
[TimeControl "180+1"]
[EndTime "10:04:35 PDT"]
[Termination "viktorskliarov won by resignation"]

1. e4 {[%clk 0:02:59.8]} 1... e6 {[%clk 0:02:58.3]} 2. d4 {[%clk 0:02:58.5]}
2... d5 {[%clk 0:02:52.2]} 3. e5 {[%clk 0:02:58.6]} 3... c5 {[%clk 0:02:41.9]}
4. c3 {[%clk 0:02:58.7]} 4... Qb6 {[%clk 0:02:41.2]} 5. Nf3 {[%clk 0:02:53.4]}
5... Bd7 {[%clk 0:02:40.6]} 6. Be2 {[%clk 0:02:52.1]} 6... Bb5 {[%clk
0:02:40.1]} 7. c4 {[%clk 0:02:50.7]} 7... dxc4 {[%clk 0:02:38.6]} 8. Nc3 {[%clk
0:02:39.8]} 8... Nc6 {[%clk 0:02:21.2]} 9. d5 {[%clk 0:02:32.2]} 9... exd5
{[%clk 0:01:45.8]} 10. Nxd5 {[%clk 0:02:33.1]} 10... Qa5+ {[%clk 0:01:45.2]} 11.
Bd2 {[%clk 0:02:29]} 11... Qd8 {[%clk 0:01:44.3]} 12. Bc3 {[%clk 0:02:14.5]}
12... Nge7 {[%clk 0:01:36.7]} 13. Ne3 {[%clk 0:02:12.8]} 13... Nb4 {[%clk
0:01:25.9]} 14. Nxc4 {[%clk 0:02:07.2]} 14... Bxc4 {[%clk 0:01:16.4]} 15. Bxc4
{[%clk 0:02:06]} 15... Nbd5 {[%clk 0:01:15.6]} 16. Qa4+ {[%clk 0:01:49.7]} 16...
Nc6 {[%clk 0:01:13.7]} 17. Rd1 {[%clk 0:01:44.6]} 17... Nb6 {[%clk 0:00:41.9]}
18. Rxd8+ {[%clk 0:01:41.8]} 18... Kxd8 {[%clk 0:00:42.8]} 19. Qb3 {[%clk
0:01:38.7]} 19... Na5 {[%clk 0:00:42.6]} 20. Bxa5 {[%clk 0:01:37.6]} 1-0

[Event "*** Titled Tuesday Blitz"]
[Site "Chess.com"]
[Date "2020.04.14"]
[Round "1"]
[White "Rokis13"]
[Black "BilodeauA"]
[Result "0-1"]
[WhiteElo "2482"]
[BlackElo "2903"]
[TimeControl "180+1"]
[EndTime "10:04:38 PDT"]
[Termination "BilodeauA won by resignation"]

1. e4 {[%clk 0:02:58.3]} 1... e5 {[%clk 0:02:56.1]} 2. Nf3 {[%clk 0:02:58.3]}
2... Nc6 {[%clk 0:02:54.7]} 3. Bc4 {[%clk 0:02:58.3]} 3... Bc5 {[%clk
0:02:54.5]} 4. O-O {[%clk 0:02:57.9]} 4... Nf6 {[%clk 0:02:54.9]} 5. d3 {[%clk
0:02:56.4]} 5... d6 {[%clk 0:02:55]} 6. a3 {[%clk 0:02:55.4]} 6... a6 {[%clk
0:02:53]} 7. b4 {[%clk 0:02:53.5]} 7... Ba7 {[%clk 0:02:53]} 8. Nc3 {[%clk
0:02:53.7]} 8... O-O {[%clk 0:02:50.5]} 9. Bg5 {[%clk 0:02:53.7]} 9... h6 {[%clk
0:02:50.1]} 10. Bh4 {[%clk 0:02:53.7]} 10... Be6 {[%clk 0:02:14.6]} 11. Nd5
{[%clk 0:02:50.8]} 11... g5 {[%clk 0:02:06]} 12. Nxg5 {[%clk 0:02:12.9]} 12...
hxg5 {[%clk 0:02:03.3]} 13. Bxg5 {[%clk 0:02:13.8]} 13... Bxd5 {[%clk 0:02:04]}
14. Bxd5 {[%clk 0:02:12.7]} 14... Kg7 {[%clk 0:01:57.2]} 15. Kh1 {[%clk
0:02:10]} 15... Ne7 {[%clk 0:01:41.4]} 16. f4 {[%clk 0:01:56.8]} 16... Nfxd5
{[%clk 0:01:37.7]} 17. exd5 {[%clk 0:01:57.7]} 17... f6 {[%clk 0:01:36.2]} 18.
Bh4 {[%clk 0:01:50.4]} 18... Ng6 {[%clk 0:01:20]} 19. Qg4 {[%clk 0:01:42.1]}
19... f5 {[%clk 0:01:20.3]} 20. Bxd8 {[%clk 0:01:39.1]} 20... fxg4 {[%clk
0:01:20.5]} 21. Bxc7 {[%clk 0:01:39.4]} 21... exf4 {[%clk 0:01:13.1]} 22. Bxd6
{[%clk 0:01:32.7]} 22... Rf5 {[%clk 0:01:12.9]} 23. c4 {[%clk 0:01:31.5]} 23...
Bd4 {[%clk 0:01:11.3]} 24. Rae1 {[%clk 0:01:29.7]} 24... Rh8 {[%clk 0:01:11.8]}
25. Re4 {[%clk 0:01:24.7]} 25... Rxh2+ {[%clk 0:01:10.2]} 0-1

[Event "*** Titled Tuesday Blitz"]
[Site "Chess.com"]
[Date "2020.04.14"]
[Round "1"]
[White "GMNeiksans"]
[Black "michaelk123"]
[Result "1-0"]
[WhiteElo "2854"]
[BlackElo "2453"]
[TimeControl "180+1"]
[EndTime "10:04:41 PDT"]
[Termination "GMNeiksans won by resignation"]

1. e4 {[%clk 0:03:00.9]} 1... c6 {[%clk 0:03:00]} 2. d4 {[%clk 0:03:00.5]} 2...
d5 {[%clk 0:03:00.6]} 3. exd5 {[%clk 0:03:00.9]} 3... cxd5 {[%clk 0:03:00.3]} 4.
Bd3 {[%clk 0:03:00.9]} 4... Nc6 {[%clk 0:03:00.5]} 5. c3 {[%clk 0:03:01]} 5...
Qc7 {[%clk 0:02:58.2]} 6. Ne2 {[%clk 0:03:00.5]} 6... Bg4 {[%clk 0:02:55.7]} 7.
O-O {[%clk 0:03:00.4]} 7... Nf6 {[%clk 0:02:52.9]} 8. Qe1 {[%clk 0:02:59.2]}
8... e6 {[%clk 0:02:51]} 9. Bg5 {[%clk 0:02:59.2]} 9... Be7 {[%clk 0:02:47.2]}
10. f3 {[%clk 0:02:55.3]} 10... Bh5 {[%clk 0:02:46.1]} 11. Qh4 {[%clk
0:02:53.8]} 11... Bg6 {[%clk 0:02:14.3]} 12. Bxg6 {[%clk 0:02:52.9]} 12... fxg6
{[%clk 0:02:15.2]} 13. Nf4 {[%clk 0:02:51]} 13... e5 {[%clk 0:02:13.5]} 14. Nxg6
{[%clk 0:02:27.2]} 14... Kf7 {[%clk 0:01:33.4]} 15. Nxh8+ {[%clk 0:02:18]} 15...
Rxh8 {[%clk 0:01:33.6]} 16. Nd2 {[%clk 0:02:05.3]} 16... h6 {[%clk 0:01:29.7]}
17. Nb3 {[%clk 0:01:51.6]} 17... Rh7 {[%clk 0:01:15.7]} 18. Bxf6 {[%clk
0:01:47.6]} 18... Bxf6 {[%clk 0:01:16]} 19. Qf2 {[%clk 0:01:44.8]} 19... h5
{[%clk 0:01:07.6]} 20. Rad1 {[%clk 0:01:41.9]} 20... e4 {[%clk 0:00:52.1]} 21.
fxe4 {[%clk 0:01:40.6]} 21... dxe4 {[%clk 0:00:52.6]} 22. Nc5 {[%clk 0:01:40.2]}
22... Ne5 {[%clk 0:00:39.3]} 1-0

[Event "*** Titled Tuesday Blitz"]
[Site "Chess.com"]
[Date "2020.04.14"]
[Round "1"]
[White "NastaJ"]
[Black "MaxVavulin"]
[Result "0-1"]
[WhiteElo "1961"]
[BlackElo "2523"]
[TimeControl "180+1"]
[EndTime "10:04:43 PDT"]
[Termination "MaxVavulin won by resignation"]

1. e4 {[%clk 0:03:00.3]} 1... g6 {[%clk 0:02:59.7]} 2. d4 {[%clk 0:02:58.5]}
2... Bg7 {[%clk 0:03:00.2]} 3. Nf3 {[%clk 0:02:58.1]} 3... d6 {[%clk 0:03:00.3]}
4. Nc3 {[%clk 0:02:57.4]} 4... a6 {[%clk 0:02:58.4]} 5. a4 {[%clk 0:02:54.9]}
5... b6 {[%clk 0:02:55.5]} 6. Bc4 {[%clk 0:02:48.8]} 6... e6 {[%clk 0:02:55.3]}
7. O-O {[%clk 0:02:46.4]} 7... Bb7 {[%clk 0:02:55.3]} 8. Bg5 {[%clk 0:02:42.4]}
8... Ne7 {[%clk 0:02:55.2]} 9. Re1 {[%clk 0:02:37.2]} 9... h6 {[%clk 0:02:54.7]}
10. Bh4 {[%clk 0:02:27.9]} 10... Nd7 {[%clk 0:02:49.1]} 11. Qd2 {[%clk
0:01:48.8]} 11... g5 {[%clk 0:02:45.3]} 12. Bg3 {[%clk 0:01:48.2]} 12... Nf6
{[%clk 0:02:45.2]} 13. h3 {[%clk 0:01:38.1]} 13... O-O {[%clk 0:02:32.8]} 14.
Nh2 {[%clk 0:01:30.1]} 14... Nh5 {[%clk 0:02:27.7]} 15. Ng4 {[%clk 0:01:24.6]}
15... Nxg3 {[%clk 0:02:21.9]} 16. fxg3 {[%clk 0:01:24.7]} 16... Kh8 {[%clk
0:02:10.9]} 17. h4 {[%clk 0:01:21.5]} 17... f5 {[%clk 0:02:06.5]} 18. Nf2 {[%clk
0:01:18.7]} 18... fxe4 {[%clk 0:01:54.9]} 19. Ncxe4 {[%clk 0:01:17.3]} 19... d5
{[%clk 0:01:49.6]} 20. hxg5 {[%clk 0:01:14.7]} 20... dxe4 {[%clk 0:01:27.5]} 21.
gxh6 {[%clk 0:01:14]} 21... Bxd4 {[%clk 0:01:25.3]} 0-1

[Event "*** Titled Tuesday Blitz"]
[Site "Chess.com"]
[Date "2020.04.14"]
[Round "1"]
[White "tonyq11"]
[Black "StegariuVlad"]
[Result "1-0"]
[WhiteElo "2254"]
[BlackElo "2587"]
[TimeControl "180+1"]
[EndTime "10:04:47 PDT"]
[Termination "tonyq11 won by resignation"]

1. d4 {[%clk 0:03:00.9]} 1... Nf6 {[%clk 0:02:59.2]} 2. c4 {[%clk 0:03:00.9]}
2... e6 {[%clk 0:02:58.3]} 3. Nc3 {[%clk 0:03:00.7]} 3... d5 {[%clk 0:02:58.1]}
4. Nf3 {[%clk 0:02:58.4]} 4... Bb4 {[%clk 0:02:55.6]} 5. Qc2 {[%clk 0:02:45.2]}
5... O-O {[%clk 0:02:52.6]} 6. Bg5 {[%clk 0:02:36.4]} 6... h6 {[%clk 0:02:51.9]}
7. Bxf6 {[%clk 0:02:32.2]} 7... Qxf6 {[%clk 0:02:51.5]} 8. e3 {[%clk 0:02:32.2]}
8... c5 {[%clk 0:02:50.4]} 9. a3 {[%clk 0:02:29]} 9... Bxc3+ {[%clk 0:02:49]}
10. Qxc3 {[%clk 0:02:24.5]} 10... dxc4 {[%clk 0:02:40.3]} 11. Bxc4 {[%clk
0:02:23.4]} 11... b6 {[%clk 0:02:38.3]} 12. dxc5 {[%clk 0:02:20.6]} 12... Qxc3+
{[%clk 0:02:32.4]} 13. bxc3 {[%clk 0:02:21.5]} 13... bxc5 {[%clk 0:02:30.8]} 14.
O-O {[%clk 0:02:14.9]} 14... Ba6 {[%clk 0:02:30.1]} 15. Bxa6 {[%clk 0:02:12.3]}
15... Nxa6 {[%clk 0:02:29.7]} 16. c4 {[%clk 0:02:12.4]} 16... Rab8 {[%clk
0:02:29]} 17. Rab1 {[%clk 0:02:11.3]} 17... f6 {[%clk 0:02:28.9]} 18. Rfd1
{[%clk 0:02:10]} 18... Rfd8 {[%clk 0:02:28.8]} 19. h4 {[%clk 0:02:02.8]} 19...
Kf8 {[%clk 0:02:25.5]} 20. Rxb8 {[%clk 0:01:58.2]} 20... Rxb8 {[%clk 0:02:18.4]}
21. Rd7 {[%clk 0:01:58.1]} 21... Ra8 {[%clk 0:02:10.5]} 22. h5 {[%clk
0:01:36.7]} 22... Nb8 {[%clk 0:02:02.3]} 23. Rc7 {[%clk 0:01:34.8]} 23... Na6
{[%clk 0:02:00.5]} 24. Rc6 {[%clk 0:01:30.9]} 24... Nb8 {[%clk 0:01:58.4]} 25.
Rxc5 {[%clk 0:01:30.3]} 25... Nd7 {[%clk 0:01:58.5]} 26. Rc7 {[%clk 0:01:29.7]}
26... Ke7 {[%clk 0:01:58.5]} 27. Nh4 {[%clk 0:01:27.1]} 27... Kd6 {[%clk
0:01:55.7]} 28. Rb7 {[%clk 0:01:26.8]} 28... Kc6 {[%clk 0:01:55.9]} 29. Rb3
{[%clk 0:01:23.5]} 29... Nb6 {[%clk 0:01:53.4]} 30. Nf3 {[%clk 0:01:13]} 30...
Nxc4 {[%clk 0:01:51.8]} 31. Nd4+ {[%clk 0:01:12.8]} 31... Kd5 {[%clk 0:01:52]}
32. Rb7 {[%clk 0:01:10.7]} 32... Nxa3 {[%clk 0:01:52]} 33. Rxg7 {[%clk 0:01:10]}
33... a5 {[%clk 0:01:50.7]} 34. Rd7+ {[%clk 0:01:08.4]} 34... Kc4 {[%clk
0:01:50.1]} 35. Nxe6 {[%clk 0:01:08.2]} 35... a4 {[%clk 0:01:50]} 36. Rd4+
{[%clk 0:01:07.5]} 36... Kb5 {[%clk 0:01:44.9]} 37. Nc7+ {[%clk 0:01:06.9]} 1-0